[Event "November 21 Early 2023"]
[Site "https://www.chess.com"]
[Date "2023.11.21"]
[Round "7"]
[White "Nikulina, Alena"]
[Black "Nekoo04"]
[Result "0-1"]
[Board "188"]
[TimeControl "180+1"]
[WhiteFideId "4172051"]
[WhiteElo "1627"]
[BlackElo "2275"]
[WhiteTeam "RUS"]
[WhiteClock "0:00:08"]
[BlackClock "0:00:21"]

1. e4 {[%clk 0:02:56]}  c5 {[%clk 0:02:55]} 2. Nf3 {[%clk 0:02:56]}  d6 {[%clk 0:02:56]} 3. c3 {[%clk 0:02:54]}  Nf6 {[%clk 0:02:55]} 4. h3 {[%clk 0:02:54]}  Nc6 {[%clk 0:02:54]} 5. Bd3 {[%clk 0:02:53]}  e6 {[%clk 0:02:47]} 6. Bc2 {[%clk 0:02:53]}  d5 {[%clk 0:02:47]} 7. e5 {[%clk 0:02:52]}  Nd7 {[%clk 0:02:46]} 8. d4 {[%clk 0:02:52]}  Qb6 {[%clk 0:02:45]} 9. O-O {[%clk 0:02:46]}  Be7 {[%clk 0:02:40]} 10. a3 {[%clk 0:02:45]}  O-O {[%clk 0:02:28]} 11. Qd3 {[%clk 0:02:15]}  f5 {[%clk 0:02:10]} 12. exf6 {[%clk 0:02:13]}  Nxf6 {[%clk 0:02:11]} 13. Bg5 {[%clk 0:02:07]}  Qxb2 {[%clk 0:01:48]} 14. Bxf6 {[%clk 0:02:03]}  Bxf6 {[%clk 0:01:48]} 15. Qxh7+ {[%clk 0:02:02]}  Kf7 {[%clk 0:01:48]} 16. Qg6+ {[%clk 0:01:31]}  Ke7 {[%clk 0:01:44]} 17. Ng5 {[%clk 0:01:29]}  Qxa1 {[%clk 0:01:40]} 18. Nh7 {[%clk 0:01:24]}  cxd4 {[%clk 0:01:23]} 19. Nxf8 {[%clk 0:01:21]}  Kxf8 {[%clk 0:01:23]} 20. cxd4 {[%clk 0:01:09]}  Qxd4 {[%clk 0:01:17]} 21. Rd1 {[%clk 0:00:48]}  Qe5 {[%clk 0:01:08]} 22. Qh7 {[%clk 0:00:38]}  Ke7 {[%clk 0:01:05]} 23. Nd2 {[%clk 0:00:34]}  Nd4 {[%clk 0:01:00]} 24. Ba4 {[%clk 0:00:30]}  b5 {[%clk 0:00:55]} 25. Bxb5 {[%clk 0:00:24]}  Nxb5 {[%clk 0:00:51]} 26. Nf3 {[%clk 0:00:23]}  Qe4 {[%clk 0:00:44]} 27. Qh5 {[%clk 0:00:16]}  Bd7 {[%clk 0:00:40]} 28. Ng5 {[%clk 0:00:16]}  Qf5 {[%clk 0:00:24]} 29. Qf7+ {[%clk 0:00:15]}  Kd6 {[%clk 0:00:24]} 30. Nf3 {[%clk 0:00:12]}  Nd4 {[%clk 0:00:18]} 31. Nxd4 {[%clk 0:00:11]}  Bxd4 {[%clk 0:00:18]} 32. Qxf5 {[%clk 0:00:09]}  exf5 {[%clk 0:00:18]} 33. Rxd4 {[%clk 0:00:10]}  Ke5 {[%clk 0:00:18]} 34. Rd3 {[%clk 0:00:10]}  d4 {[%clk 0:00:18]} 35. Kf1 {[%clk 0:00:10]}  Bb5 {[%clk 0:00:18]} 36. Ke2 {[%clk 0:00:11]}  Rc8 {[%clk 0:00:18]} 37. Kd2 {[%clk 0:00:10]}  Bxd3 {[%clk 0:00:19]} 38. Kxd3 {[%clk 0:00:10]}  Rc3+ {[%clk 0:00:20]} 39. Kd2 {[%clk 0:00:08]}  Rxa3 {[%clk 0:00:21]} 0-1

[Event "November 21 Early 2023"]
[Site "https://www.chess.com"]
[Date "2023.11.21"]
[Round "7"]
[White "Vlasova, Nataliya"]
[Black "Samarth J Rao"]
[Result "0-1"]
[Board "189"]
[TimeControl "180+1"]
[WhiteFideId "4122682"]
[BlackFideId "46652370"]
[WhiteElo "1939"]
[BlackElo "1564"]
[WhiteTeam "RUS"]
[BlackTeam "IND"]
[WhiteClock "0:01:13"]
[BlackClock "0:01:26"]

1. e4 {[%clk 0:03:00]}  c5 {[%clk 0:02:53]} 2. f4 {[%clk 0:03:00]}  d6 {[%clk 0:02:47]} 3. Nf3 {[%clk 0:03:00]}  g6 {[%clk 0:02:44]} 4. d4 {[%clk 0:02:57]}  cxd4 {[%clk 0:02:42]} 5. Qxd4 {[%clk 0:02:57]}  Nf6 {[%clk 0:02:39]} 6. e5 {[%clk 0:02:57]}  Nc6 {[%clk 0:02:39]} 7. Qd3 {[%clk 0:02:56]}  dxe5 {[%clk 0:02:38]} 8. Qxd8+ {[%clk 0:02:49]}  Nxd8 {[%clk 0:02:37]} 9. fxe5 {[%clk 0:02:49]}  Nd7 {[%clk 0:02:34]} 10. Bf4 {[%clk 0:02:44]}  Bg7 {[%clk 0:02:33]} 11. Nbd2 {[%clk 0:02:40]}  Ne6 {[%clk 0:02:30]} 12. Bg3 {[%clk 0:02:37]}  Nb6 {[%clk 0:02:28]} 13. O-O-O {[%clk 0:02:36]}  Bd7 {[%clk 0:02:25]} 14. Bd3 {[%clk 0:02:27]}  O-O-O {[%clk 0:02:22]} 15. Ne4 {[%clk 0:02:25]}  Bc6 {[%clk 0:02:18]} 16. Bh4 {[%clk 0:02:24]}  Nd5 {[%clk 0:02:08]} 17. Rhe1 {[%clk 0:02:19]}  h6 {[%clk 0:02:04]} 18. Bc4 {[%clk 0:02:10]}  g5 {[%clk 0:02:02]} 19. Bf2 {[%clk 0:02:06]}  Kb8 {[%clk 0:01:57]} 20. Ng3 {[%clk 0:01:58]}  Ndf4 {[%clk 0:01:51]} 21. Nf5 {[%clk 0:01:49]}  Rxd1+ {[%clk 0:01:51]} 22. Rxd1 {[%clk 0:01:46]}  Bxf3 {[%clk 0:01:51]} 23. gxf3 {[%clk 0:01:45]}  Bxe5 {[%clk 0:01:51]} 24. Nxe7 {[%clk 0:01:43]}  Bd6 {[%clk 0:01:48]} 25. Rxd6 {[%clk 0:01:42]}  Kc7 {[%clk 0:01:44]} 26. Rd1 {[%clk 0:01:40]}  Kb8 {[%clk 0:01:38]} 27. Bc5 {[%clk 0:01:35]}  Nxc5 {[%clk 0:01:28]} 28. Bxf7 {[%clk 0:01:21]}  Rh7 {[%clk 0:01:27]} 29. Rd8+ {[%clk 0:01:19]}  Kc7 {[%clk 0:01:27]} 30. Nd5+ {[%clk 0:01:13]}  Kxd8 {[%clk 0:01:26]} 0-1

[Event "November 21 Early 2023"]
[Site "https://www.chess.com"]
[Date "2023.11.21"]
[Round "7"]
[White "Andersson, Bjorn 1971"]
[Black "Lohani, Sujana"]
[Result "1-0"]
[Board "191"]
[TimeControl "180+1"]
[WhiteFideId "1702114"]
[BlackFideId "12311987"]
[WhiteElo "2172"]
[BlackElo "1718"]
[WhiteTeam "SWE"]
[BlackTeam "NEP"]
[WhiteClock "0:01:17"]
[BlackClock "0:00:00"]

1. e4 {[%clk 0:03:00]}  d6 {[%clk 0:02:58]} 2. Bc4 {[%clk 0:02:59]}  Nf6 {[%clk 0:02:58]} 3. Nc3 {[%clk 0:02:58]}  g6 {[%clk 0:02:55]} 4. d4 {[%clk 0:02:58]}  Bg7 {[%clk 0:02:55]} 5. Bg5 {[%clk 0:02:58]}  O-O {[%clk 0:02:55]} 6. e5 {[%clk 0:02:56]}  Ne8 {[%clk 0:02:29]} 7. f4 {[%clk 0:02:56]}  Nc6 {[%clk 0:02:19]} 8. Nf3 {[%clk 0:02:55]}  Bg4 {[%clk 0:02:17]} 9. d5 {[%clk 0:02:47]}  Na5 {[%clk 0:02:16]} 10. Qd4 {[%clk 0:02:42]}  Nxc4 {[%clk 0:02:13]} 11. Qxc4 {[%clk 0:02:41]}  Bxf3 {[%clk 0:02:11]} 12. gxf3 {[%clk 0:02:41]}  dxe5 {[%clk 0:02:11]} 13. fxe5 {[%clk 0:02:41]}  Bxe5 {[%clk 0:02:10]} 14. O-O-O {[%clk 0:02:41]}  Nd6 {[%clk 0:02:02]} 15. Qd3 {[%clk 0:02:41]}  Qd7 {[%clk 0:01:52]} 16. Bh6 {[%clk 0:02:40]}  Bg7 {[%clk 0:01:51]} 17. Bxg7 {[%clk 0:02:40]}  Kxg7 {[%clk 0:01:51]} 18. h4 {[%clk 0:02:40]}  h5 {[%clk 0:01:41]} 19. Ne4 {[%clk 0:02:40]}  Nf5 {[%clk 0:01:22]} 20. Rdg1 {[%clk 0:02:36]}  Rad8 {[%clk 0:01:18]} 21. c4 {[%clk 0:02:35]}  c6 {[%clk 0:01:05]} 22. Qc3+ {[%clk 0:02:34]}  Kg8 {[%clk 0:00:57]} 23. Rd1 {[%clk 0:02:30]}  cxd5 {[%clk 0:00:54]} 24. Rxd5 {[%clk 0:02:29]}  Qc8 {[%clk 0:00:47]} 25. Rhd1 {[%clk 0:02:20]}  Rxd5 {[%clk 0:00:47]} 26. Rxd5 {[%clk 0:02:15]}  Rd8 {[%clk 0:00:46]} 27. Qd3 {[%clk 0:02:06]}  Rxd5 {[%clk 0:00:44]} 28. Qxd5 {[%clk 0:01:51]}  Ne3 {[%clk 0:00:43]} 29. Qg5 {[%clk 0:01:38]}  Qxc4+ {[%clk 0:00:40]} 30. Kd2 {[%clk 0:01:38]}  Nf1+ {[%clk 0:00:34]} 31. Ke1 {[%clk 0:01:34]}  Qd3 {[%clk 0:00:24]} 32. Qxe7 {[%clk 0:01:29]}  Ng3 {[%clk 0:00:03]} 33. Qe5 {[%clk 0:01:26]}  Nxe4 {[%clk 0:00:01]} 34. fxe4 {[%clk 0:01:24]}  Qe3+ {[%clk 0:00:01]} 35. Kd1 {[%clk 0:01:24]}  Qd3+ {[%clk 0:00:01]} 36. Kc1 {[%clk 0:01:24]}  Qe3+ {[%clk 0:00:01]} 37. Kc2 {[%clk 0:01:24]}  Qe2+ {[%clk 0:00:02]} 38. Kb3 {[%clk 0:01:24]}  Qd3+ {[%clk 0:00:01]} 39. Ka4 {[%clk 0:01:23]}  Qa6+ {[%clk 0:00:01]} 40. Kb3 {[%clk 0:01:19]}  Qd3+ {[%clk 0:00:00]} 41. Kb4 {[%clk 0:01:17]} 1-0

[Event "November 21 Early 2023"]
[Site "https://www.chess.com"]
[Date "2023.11.21"]
[Round "7"]
[White "Sanchez Alvares, Kelvin Antonio"]
[Black "Martin, Lewis"]
[Result "0-1"]
[Board "192"]
[TimeControl "180+1"]
[WhiteFideId "3906680"]
[BlackFideId "410551"]
[WhiteElo "2217"]
[BlackElo "2145"]
[WhiteTeam "VEN"]
[BlackTeam "ENG"]
[WhiteClock "0:00:00"]
[BlackClock "0:00:11"]

1. e4 {[%clk 0:03:00]}  c6 {[%clk 0:02:45]} 2. d4 {[%clk 0:02:59]}  d5 {[%clk 0:02:45]} 3. e5 {[%clk 0:03:00]}  Bf5 {[%clk 0:02:44]} 4. Nc3 {[%clk 0:03:00]}  e6 {[%clk 0:02:44]} 5. g4 {[%clk 0:03:00]}  Bg6 {[%clk 0:02:43]} 6. Nge2 {[%clk 0:03:00]}  h5 {[%clk 0:02:39]} 7. Nf4 {[%clk 0:03:00]}  Bh7 {[%clk 0:02:39]} 8. Nxh5 {[%clk 0:03:00]}  c5 {[%clk 0:02:35]} 9. Be3 {[%clk 0:02:55]}  Nc6 {[%clk 0:02:35]} 10. Bb5 {[%clk 0:02:51]}  Ne7 {[%clk 0:02:33]} 11. dxc5 {[%clk 0:02:44]}  a6 {[%clk 0:02:32]} 12. Ba4 {[%clk 0:02:44]}  Qa5 {[%clk 0:01:59]} 13. a3 {[%clk 0:02:41]}  O-O-O {[%clk 0:01:54]} 14. b4 {[%clk 0:02:37]}  Qc7 {[%clk 0:01:54]} 15. b5 {[%clk 0:02:19]}  Nxe5 {[%clk 0:01:51]} 16. bxa6 {[%clk 0:02:12]}  bxa6 {[%clk 0:01:49]} 17. Qe2 {[%clk 0:01:54]}  Nc4 {[%clk 0:01:49]} 18. Bb3 {[%clk 0:01:50]}  Qa5 {[%clk 0:01:37]} 19. Bd2 {[%clk 0:01:34]}  Qxc5 {[%clk 0:01:35]} 20. Na4 {[%clk 0:01:27]}  Qc7 {[%clk 0:01:25]} 21. Bxc4 {[%clk 0:01:22]}  dxc4 {[%clk 0:01:24]} 22. O-O {[%clk 0:01:15]}  Nd5 {[%clk 0:01:22]} 23. Rab1 {[%clk 0:01:06]}  Bxc2 {[%clk 0:01:20]} 24. Rbc1 {[%clk 0:00:53]}  Bd3 {[%clk 0:01:10]} 25. Qxd3 {[%clk 0:00:53]}  cxd3 {[%clk 0:01:09]} 26. Ba5 {[%clk 0:00:54]}  Bd6 {[%clk 0:01:03]} 27. Bxc7 {[%clk 0:00:51]}  Bxc7 {[%clk 0:01:00]} 28. Rfd1 {[%clk 0:00:51]}  g6 {[%clk 0:00:52]} 29. Ng3 {[%clk 0:00:50]}  Nf4 {[%clk 0:00:49]} 30. Nc5 {[%clk 0:00:47]}  Ne2+ {[%clk 0:00:37]} 31. Nxe2 {[%clk 0:00:42]}  dxe2 {[%clk 0:00:28]} 32. Re1 {[%clk 0:00:41]}  Bxh2+ {[%clk 0:00:23]} 33. Kg2 {[%clk 0:00:40]}  Kb8 {[%clk 0:00:16]} 34. Rxe2 {[%clk 0:00:35]}  Ka7 {[%clk 0:00:14]} 35. Re4 {[%clk 0:00:20]}  Rc8 {[%clk 0:00:11]} 36. Ra4 {[%clk 0:00:20]}  Rc6 {[%clk 0:00:10]} 37. Nd3 {[%clk 0:00:20]}  Rxc1 {[%clk 0:00:09]} 38. Nxc1 {[%clk 0:00:21]}  Bd6 {[%clk 0:00:09]} 39. Ne2 {[%clk 0:00:17]}  Rh2+ {[%clk 0:00:08]} 40. Kf1 {[%clk 0:00:17]}  Rh4 {[%clk 0:00:09]} 41. Ng1 {[%clk 0:00:16]}  f5 {[%clk 0:00:09]} 42. Nf3 {[%clk 0:00:15]}  Rxg4 {[%clk 0:00:08]} 43. Rxg4 {[%clk 0:00:16]}  fxg4 {[%clk 0:00:09]} 44. Nh4 {[%clk 0:00:17]}  g5 {[%clk 0:00:09]} 45. Ng6 {[%clk 0:00:16]}  Bxa3 {[%clk 0:00:09]} 46. Ne5 {[%clk 0:00:16]}  Bd6 {[%clk 0:00:09]} 47. Nxg4 {[%clk 0:00:16]}  a5 {[%clk 0:00:10]} 48. Ke2 {[%clk 0:00:17]}  a4 {[%clk 0:00:10]} 49. Kd3 {[%clk 0:00:17]}  a3 {[%clk 0:00:11]} 50. Kc3 {[%clk 0:00:18]}  Kb6 {[%clk 0:00:11]} 51. Nf6 {[%clk 0:00:00]}  Be5+ {[%clk 0:00:11]} 0-1

[Event "November 21 Early 2023"]
[Site "https://www.chess.com"]
[Date "2023.11.21"]
[Round "7"]
[White "Zepeda Berlanga, Jan Enrique"]
[Black "Mayaud, Raphael"]
[Result "0-1"]
[Board "193"]
[TimeControl "180+1"]
[WhiteFideId "5132355"]
[BlackFideId "627151"]
[WhiteElo "1680"]
[BlackElo "2191"]
[WhiteTeam "MEX"]
[BlackTeam "FRA"]
[WhiteClock "0:00:00"]
[BlackClock "0:00:53"]

1. e4 {[%clk 0:03:00]}  d5 {[%clk 0:01:34]} 2. exd5 {[%clk 0:02:58]}  Qxd5 {[%clk 0:01:34]} 3. Nc3 {[%clk 0:02:59]}  Qa5 {[%clk 0:01:34]} 4. d4 {[%clk 0:02:51]}  c6 {[%clk 0:01:34]} 5. Nf3 {[%clk 0:02:50]}  Nf6 {[%clk 0:01:35]} 6. Bd3 {[%clk 0:02:47]}  Bg4 {[%clk 0:01:34]} 7. O-O {[%clk 0:02:42]}  e6 {[%clk 0:01:27]} 8. h3 {[%clk 0:02:35]}  Bh5 {[%clk 0:01:26]} 9. Re1 {[%clk 0:02:28]}  Nbd7 {[%clk 0:01:25]} 10. Bd2 {[%clk 0:02:19]}  Qc7 {[%clk 0:01:24]} 11. Be4 {[%clk 0:01:52]}  Bd6 {[%clk 0:01:15]} 12. Bg5 {[%clk 0:01:08]}  O-O-O {[%clk 0:01:11]} 13. Qd3 {[%clk 0:00:50]}  h6 {[%clk 0:01:04]} 14. Bxf6 {[%clk 0:00:50]}  gxf6 {[%clk 0:01:02]} 15. a4 {[%clk 0:00:46]}  Rhg8 {[%clk 0:01:02]} 16. Ne2 {[%clk 0:00:37]}  Rg7 {[%clk 0:01:02]} 17. Kh1 {[%clk 0:00:24]}  Rdg8 {[%clk 0:01:00]} 18. Rg1 {[%clk 0:00:24]}  f5 {[%clk 0:00:59]} 19. Bxf5 {[%clk 0:00:13]}  exf5 {[%clk 0:00:57]} 20. Qxf5 {[%clk 0:00:14]}  Bg6 {[%clk 0:00:56]} 21. Qg4 {[%clk 0:00:00]}  Bd3 {[%clk 0:00:53]} 0-1

[Event "November 21 Early 2023"]
[Site "https://www.chess.com"]
[Date "2023.11.21"]
[Round "7"]
[White "Ambrogi, Agustin"]
[Black "GMT4114"]
[Result "1-0"]
[Board "194"]
[TimeControl "180+1"]
[WhiteFideId "170933"]
[WhiteElo "2214"]
[BlackElo "1950"]
[WhiteTeam "ARG"]
[WhiteClock "0:02:31"]
[BlackClock "0:00:00"]

1. e4 {[%clk 0:03:00]}  e6 {[%clk 0:03:00]} 2. d4 {[%clk 0:02:59]}  d5 {[%clk 0:03:00]} 3. exd5 {[%clk 0:02:58]}  exd5 {[%clk 0:03:01]} 4. c4 {[%clk 0:02:59]}  Nf6 {[%clk 0:03:00]} 5. Nc3 {[%clk 0:02:59]}  Bb4 {[%clk 0:02:59]} 6. Nf3 {[%clk 0:02:59]}  O-O {[%clk 0:02:59]} 7. Be2 {[%clk 0:02:59]}  Nbd7 {[%clk 0:02:54]} 8. O-O {[%clk 0:02:57]}  dxc4 {[%clk 0:02:54]} 9. Bxc4 {[%clk 0:02:57]}  Nb6 {[%clk 0:02:54]} 10. Bd3 {[%clk 0:02:57]}  h6 {[%clk 0:02:49]} 11. a3 {[%clk 0:02:54]}  Be7 {[%clk 0:02:47]} 12. Re1 {[%clk 0:02:54]}  c6 {[%clk 0:02:44]} 13. Ne5 {[%clk 0:02:52]}  Nbd5 {[%clk 0:02:37]} 14. Bc2 {[%clk 0:02:51]}  Be6 {[%clk 0:02:36]} 15. Qd3 {[%clk 0:02:50]}  Qc7 {[%clk 0:02:10]} 16. Bd2 {[%clk 0:02:39]}  Rad8 {[%clk 0:02:09]} 17. Rac1 {[%clk 0:02:39]}  Rfe8 {[%clk 0:01:33]} 18. Bb1 {[%clk 0:02:39]}  Qb8 {[%clk 0:01:32]} 19. Qg3 {[%clk 0:02:37]}  Nh5 {[%clk 0:00:58]} 20. Qf3 {[%clk 0:02:36]}  Nhf6 {[%clk 0:00:51]} 21. Ne4 {[%clk 0:02:35]}  Nxe4 {[%clk 0:00:45]} 22. Qxe4 {[%clk 0:02:35]}  Nf6 {[%clk 0:00:44]} 23. Qh4 {[%clk 0:02:33]}  Bd5 {[%clk 0:00:32]} 24. Bxh6 {[%clk 0:02:31]}  gxh6 {[%clk 0:00:30]} 25. Qxh6 {[%clk 0:02:32]}  Rd6 {[%clk 0:00:22]} 26. Rc3 {[%clk 0:02:31]}  Bf8 {[%clk 0:00:00]} 27. Rg3+ {[%clk 0:02:31]} 1-0

[Event "November 21 Early 2023"]
[Site "https://www.chess.com"]
[Date "2023.11.21"]
[Round "7"]
[White "Adithya A Chullikkad"]
[Black "Gyulamiryan-koryun"]
[Result "0-1"]
[Board "195"]
[TimeControl "180+1"]
[WhiteFideId "45078734"]
[WhiteElo "2042"]
[BlackElo "1891"]
[WhiteTeam "IND"]
[WhiteClock "0:00:52"]
[BlackClock "0:00:50"]

1. d4 {[%clk 0:03:00]}  Nf6 {[%clk 0:02:04]} 2. Bf4 {[%clk 0:02:58]}  d5 {[%clk 0:02:02]} 3. Nf3 {[%clk 0:02:57]}  e6 {[%clk 0:02:03]} 4. e3 {[%clk 0:02:57]}  c5 {[%clk 0:02:03]} 5. c3 {[%clk 0:02:57]}  Nc6 {[%clk 0:02:04]} 6. Nbd2 {[%clk 0:02:58]}  b6 {[%clk 0:02:03]} 7. Bd3 {[%clk 0:02:57]}  Bb7 {[%clk 0:02:03]} 8. O-O {[%clk 0:02:58]}  Bd6 {[%clk 0:02:02]} 9. Bg3 {[%clk 0:02:58]}  h5 {[%clk 0:01:59]} 10. Bh4 {[%clk 0:02:54]}  Qc7 {[%clk 0:01:55]} 11. e4 {[%clk 0:02:44]}  dxe4 {[%clk 0:01:52]} 12. Nxe4 {[%clk 0:02:43]}  Nxe4 {[%clk 0:01:51]} 13. Bxe4 {[%clk 0:02:43]}  cxd4 {[%clk 0:01:49]} 14. cxd4 {[%clk 0:02:20]}  O-O {[%clk 0:01:43]} 15. h3 {[%clk 0:02:17]}  Ne7 {[%clk 0:01:40]} 16. Bh7+ {[%clk 0:01:52]}  Kxh7 {[%clk 0:01:33]} 17. Ng5+ {[%clk 0:01:52]}  Kg6 {[%clk 0:01:31]} 18. Rc1 {[%clk 0:01:44]}  Bh2+ {[%clk 0:01:21]} 19. Kh1 {[%clk 0:01:43]}  Qf4 {[%clk 0:01:21]} 20. Qd3+ {[%clk 0:01:32]}  Nf5 {[%clk 0:01:19]} 21. Nf3 {[%clk 0:01:02]}  Bxf3 {[%clk 0:01:11]} 22. gxf3 {[%clk 0:01:02]}  Qxh4 {[%clk 0:01:01]} 23. Kxh2 {[%clk 0:01:01]}  Qf4+ {[%clk 0:00:59]} 24. Kh1 {[%clk 0:01:00]}  Kh7 {[%clk 0:00:50]} 25. Rg1 {[%clk 0:00:58]}  g6 {[%clk 0:00:50]} 26. Rg3 {[%clk 0:00:55]}  Nxg3+ {[%clk 0:00:49]} 27. fxg3 {[%clk 0:00:52]}  Qxc1+ {[%clk 0:00:50]} 0-1

[Event "November 21 Early 2023"]
[Site "https://www.chess.com"]
[Date "2023.11.21"]
[Round "8"]
[White "Halkias, Stelios"]
[Black "Nakamura, Hikaru"]
[Result "0-1"]
[Board "2"]
[TimeControl "180+1"]
[WhiteFideId "4201809"]
[BlackFideId "2016192"]
[WhiteElo "2462"]
[BlackElo "2874"]
[WhiteTeam "GRE"]
[BlackTeam "USA"]
[WhiteClock "0:00:05"]
[BlackClock "0:00:11"]

1. Nf3 {[%clk 0:03:00]}  g6 {[%clk 0:02:55]} 2. d4 {[%clk 0:03:00]}  Nf6 {[%clk 0:02:54]} 3. g3 {[%clk 0:02:57]}  b5 {[%clk 0:02:46]} 4. Bg2 {[%clk 0:02:56]}  Bb7 {[%clk 0:02:47]} 5. O-O {[%clk 0:02:56]}  Bg7 {[%clk 0:02:47]} 6. c3 {[%clk 0:02:53]}  a6 {[%clk 0:02:43]} 7. a4 {[%clk 0:02:53]}  O-O {[%clk 0:02:43]} 8. Bg5 {[%clk 0:02:48]}  d6 {[%clk 0:02:37]} 9. Nbd2 {[%clk 0:02:46]}  Nbd7 {[%clk 0:02:36]} 10. Qb3 {[%clk 0:02:39]}  Bd5 {[%clk 0:02:35]} 11. Qc2 {[%clk 0:02:38]}  c5 {[%clk 0:02:35]} 12. e4 {[%clk 0:02:37]}  Bc6 {[%clk 0:02:35]} 13. d5 {[%clk 0:02:37]}  Bb7 {[%clk 0:02:35]} 14. c4 {[%clk 0:02:34]}  bxc4 {[%clk 0:02:32]} 15. Nxc4 {[%clk 0:02:33]}  a5 {[%clk 0:02:33]} 16. Rfe1 {[%clk 0:02:31]}  Ba6 {[%clk 0:02:27]} 17. Bf1 {[%clk 0:02:28]}  Ng4 {[%clk 0:02:06]} 18. h3 {[%clk 0:01:33]}  Bxc4 {[%clk 0:02:00]} 19. hxg4 {[%clk 0:01:28]}  Bxf1 {[%clk 0:01:59]} 20. Rxf1 {[%clk 0:01:28]}  Rb8 {[%clk 0:01:59]} 21. Rab1 {[%clk 0:01:28]}  Ne5 {[%clk 0:01:35]} 22. Nxe5 {[%clk 0:01:26]}  Bxe5 {[%clk 0:01:35]} 23. Kg2 {[%clk 0:01:27]}  Qd7 {[%clk 0:01:35]} 24. f3 {[%clk 0:01:09]}  Rb7 {[%clk 0:01:34]} 25. Bd2 {[%clk 0:01:07]}  Rfb8 {[%clk 0:01:16]} 26. b3 {[%clk 0:01:04]}  Qd8 {[%clk 0:01:06]} 27. Qc4 {[%clk 0:01:03]}  Ra7 {[%clk 0:01:01]} 28. g5 {[%clk 0:01:02]}  Qc8 {[%clk 0:01:01]} 29. Rh1 {[%clk 0:00:34]}  Qa6 {[%clk 0:00:58]} 30. f4 {[%clk 0:00:33]}  Bd4 {[%clk 0:00:55]} 31. Kf3 {[%clk 0:00:31]}  Rb6 {[%clk 0:00:30]} 32. g4 {[%clk 0:00:26]}  Qb7 {[%clk 0:00:29]} 33. Rh3 {[%clk 0:00:20]}  Qb8 {[%clk 0:00:25]} 34. Ke2 {[%clk 0:00:19]}  Qc8 {[%clk 0:00:25]} 35. Rg3 {[%clk 0:00:18]}  Qa6 {[%clk 0:00:17]} 36. Kd3 {[%clk 0:00:15]}  Qb7 {[%clk 0:00:16]} 37. f5 {[%clk 0:00:15]}  Be5 {[%clk 0:00:15]} 38. Rh3 {[%clk 0:00:14]}  Qb8 {[%clk 0:00:10]} 39. Kc2 {[%clk 0:00:14]}  Rab7 {[%clk 0:00:10]} 40. Rbh1 {[%clk 0:00:14]}  Rb4 {[%clk 0:00:09]} 41. Bxb4 {[%clk 0:00:13]}  Rxb4 {[%clk 0:00:09]} 42. Qa6 {[%clk 0:00:11]}  c4 {[%clk 0:00:09]} 43. Rd1 {[%clk 0:00:08]}  cxb3+ {[%clk 0:00:09]} 44. Kd3 {[%clk 0:00:08]}  b2 {[%clk 0:00:09]} 45. Ke2 {[%clk 0:00:05]}  b1=Q {[%clk 0:00:09]} 46. Rxb1 {[%clk 0:00:05]}  Rxb1 {[%clk 0:00:10]} 47. Rd3 {[%clk 0:00:05]}  Rb4 {[%clk 0:00:08]} 48. Kf3 {[%clk 0:00:04]}  Rb3 {[%clk 0:00:09]} 49. Rxb3 {[%clk 0:00:04]}  Qxb3+ {[%clk 0:00:09]} 50. Ke2 {[%clk 0:00:05]}  Qc2+ {[%clk 0:00:10]} 51. Kf3 {[%clk 0:00:05]}  Qc3+ {[%clk 0:00:09]} 52. Ke2 {[%clk 0:00:05]}  Kg7 {[%clk 0:00:09]} 53. Qb7 {[%clk 0:00:04]}  Qc2+ {[%clk 0:00:09]} 54. Ke3 {[%clk 0:00:05]}  Qc1+ {[%clk 0:00:10]} 55. Ke2 {[%clk 0:00:05]}  Qxg5 {[%clk 0:00:11]} 56. Qd7 {[%clk 0:00:04]}  Qxg4+ {[%clk 0:00:11]} 57. Kd3 {[%clk 0:00:05]}  Qf3+ {[%clk 0:00:12]} 58. Kc4 {[%clk 0:00:06]}  Qxe4+ {[%clk 0:00:12]} 59. Kb5 {[%clk 0:00:06]}  Qb4+ {[%clk 0:00:12]} 60. Ka6 {[%clk 0:00:07]}  Qc4+ {[%clk 0:00:13]} 61. Ka7 {[%clk 0:00:07]}  Bd4+ {[%clk 0:00:12]} 62. Kb8 {[%clk 0:00:07]}  Bf6 {[%clk 0:00:11]} 63. Qc6 {[%clk 0:00:06]}  Qb4+ {[%clk 0:00:10]} 64. Kc8 {[%clk 0:00:07]}  g5 {[%clk 0:00:11]} 65. Kd7 {[%clk 0:00:07]}  g4 {[%clk 0:00:11]} 66. Qc2 {[%clk 0:00:06]}  Qb7+ {[%clk 0:00:10]} 67. Ke8 {[%clk 0:00:05]}  e5 {[%clk 0:00:11]} 68. fxe6 {[%clk 0:00:05]}  Qe7# {[%clk 0:00:11]} 0-1

[Event "November 21 Early 2023"]
[Site "https://www.chess.com"]
[Date "2023.11.21"]
[Round "8"]
[White "Van Foreest, Jorden"]
[Black "Andreikin, Dmitry"]
[Result "0-1"]
[Board "3"]
[TimeControl "180+1"]
[WhiteFideId "1039784"]
[BlackFideId "4158814"]
[WhiteElo "2664"]
[BlackElo "2741"]
[WhiteTeam "NED"]
[BlackTeam "FID"]
[WhiteClock "0:00:00"]
[BlackClock "0:00:05"]

1. e4 {[%clk 0:02:57]}  c5 {[%clk 0:02:58]} 2. Nf3 {[%clk 0:02:57]}  g6 {[%clk 0:02:58]} 3. d4 {[%clk 0:02:54]}  cxd4 {[%clk 0:02:59]} 4. Nxd4 {[%clk 0:02:55]}  Nf6 {[%clk 0:02:58]} 5. Nc3 {[%clk 0:02:53]}  d6 {[%clk 0:02:57]} 6. Be3 {[%clk 0:02:51]}  Nc6 {[%clk 0:02:55]} 7. f3 {[%clk 0:02:51]}  h5 {[%clk 0:02:53]} 8. Bc4 {[%clk 0:02:48]}  Bg7 {[%clk 0:02:48]} 9. Qd2 {[%clk 0:02:48]}  Bd7 {[%clk 0:02:43]} 10. Bb3 {[%clk 0:02:45]}  Na5 {[%clk 0:02:38]} 11. O-O {[%clk 0:02:33]}  Rc8 {[%clk 0:02:35]} 12. Rad1 {[%clk 0:02:30]}  Nc4 {[%clk 0:02:29]} 13. Bxc4 {[%clk 0:02:30]}  Rxc4 {[%clk 0:02:30]} 14. Nde2 {[%clk 0:02:25]}  Qa5 {[%clk 0:02:17]} 15. Kh1 {[%clk 0:02:20]}  h4 {[%clk 0:02:13]} 16. b3 {[%clk 0:02:08]}  Rc6 {[%clk 0:01:58]} 17. Bd4 {[%clk 0:02:08]}  h3 {[%clk 0:01:55]} 18. g4 {[%clk 0:02:07]}  Be6 {[%clk 0:01:33]} 19. a4 {[%clk 0:01:47]}  b6 {[%clk 0:01:24]} 20. Nb5 {[%clk 0:01:32]}  O-O {[%clk 0:00:52]} 21. Bc3 {[%clk 0:01:16]}  Qa6 {[%clk 0:00:51]} 22. Ned4 {[%clk 0:01:06]}  Rcc8 {[%clk 0:00:49]} 23. Bb2 {[%clk 0:01:04]}  Bd7 {[%clk 0:00:31]} 24. c4 {[%clk 0:01:04]}  Qb7 {[%clk 0:00:32]} 25. Nc3 {[%clk 0:00:57]}  a6 {[%clk 0:00:32]} 26. Rg1 {[%clk 0:00:57]}  Rfd8 {[%clk 0:00:29]} 27. Nf5 {[%clk 0:00:57]}  gxf5 {[%clk 0:00:24]} 28. gxf5 {[%clk 0:00:56]}  Bxf5 {[%clk 0:00:25]} 29. Rxg7+ {[%clk 0:00:43]}  Kxg7 {[%clk 0:00:24]} 30. Nd5 {[%clk 0:00:44]}  Bg6 {[%clk 0:00:21]} 31. Qg5 {[%clk 0:00:42]}  Kf8 {[%clk 0:00:08]} 32. Bxf6 {[%clk 0:00:22]}  exf6 {[%clk 0:00:09]} 33. Qxf6 {[%clk 0:00:21]}  Ke8 {[%clk 0:00:08]} 34. Rg1 {[%clk 0:00:17]}  Rc5 {[%clk 0:00:04]} 35. Rxg6 {[%clk 0:00:12]}  fxg6 {[%clk 0:00:05]} 36. Qe6+ {[%clk 0:00:11]}  Kf8 {[%clk 0:00:05]} 37. Qf6+ {[%clk 0:00:12]}  Ke8 {[%clk 0:00:05]} 38. Qe6+ {[%clk 0:00:09]}  Kf8 {[%clk 0:00:06]} 39. Qf6+ {[%clk 0:00:10]}  Qf7 {[%clk 0:00:06]} 40. Qxd8+ {[%clk 0:00:10]}  Kg7 {[%clk 0:00:06]} 41. Kg1 {[%clk 0:00:09]}  Qxf3 {[%clk 0:00:06]} 42. Qe7+ {[%clk 0:00:10]}  Kh6 {[%clk 0:00:05]} 43. Qh4+ {[%clk 0:00:05]}  Kg7 {[%clk 0:00:06]} 44. Qe7+ {[%clk 0:00:05]}  Kh6 {[%clk 0:00:07]} 45. Qh4+ {[%clk 0:00:06]}  Qh5 {[%clk 0:00:07]} 46. Qe1 {[%clk 0:00:04]}  Qg4+ {[%clk 0:00:07]} 47. Kf2 {[%clk 0:00:04]}  Rc8 {[%clk 0:00:06]} 48. Qd2+ {[%clk 0:00:02]}  g5 {[%clk 0:00:06]} 49. Qd4 {[%clk 0:00:01]}  Rf8+ {[%clk 0:00:06]} 50. Ke1 {[%clk 0:00:00]}  Qh4+ {[%clk 0:00:05]} 0-1